lending/lending_fUSD_20250122
["ID","MTS","AMOUNT","RATE_DAILY","PERIOD"]
[349954467,1737534661164,-1018.24,0.00020817,2]
[349954468,1737534661175,-500.0,0.00020817,2]
[349954469,1737534661184,-500.0,0.00020817,2]
[349954470,1737534661193,-895.81,0.00020817,2]
[349954471,1737534661203,-1128.14,0.00020817,2]
[349954472,1737534661213,-1063.29,0.00020817,2]
[349954473,1737534661222,-500.0,0.00020817,2]
[349954474,1737534661232,-500.0,0.00020817,2]
[349954475,1737534661244,-1229.9,0.00020817,2]
[349954476,1737534661253,-500.0,0.00020817,2]
[349954477,1737534661263,-910.85,0.00020817,2]
[349954478,1737534661274,-713.75,0.00020817,2]
[349954479,1737534661284,-976.93,0.00020817,2]
[349954480,1737534661294,-500.0,0.00020817,2]
[349954481,1737534661303,-1056.04,0.00020817,2]
[349954482,1737534661313,-500.0,0.00020817,2]
[349954483,1737534661323,-500.0,0.00020817,2]
[349954484,1737534661333,-880.91,0.00020817,2]
[349954485,1737534661341,-542.64,0.00020817,2]
[349954486,1737534661351,-620.06,0.00020817,2]
[349954487,1737534661361,-1345.98,0.00020817,2]
[349954488,1737534661371,-940.54,0.00020817,2]
[349954489,1737534661381,-1177.26,0.00020817,2]
[349954490,1737534661390,-1602.21,0.00020817,2]
[349954491,1737534661400,-500.0,0.00020817,2]
[349954492,1737534661409,-500.0,0.00020817,2]
[349954493,1737534661419,-650.05,0.00020817,2]
[349954494,1737534661432,-2865.39,0.00020817,2]
[349954495,1737534661441,-500.0,0.00020817,2]
[349954496,1737534661452,-1460.66,0.00020817,2]
[349954497,1737534661462,-903.86,0.00020817,2]
[349954498,1737534661471,-910.11,0.00020817,2]
[349954499,1737534661481,-1447.14,0.00020817,2]
[349954500,1737534661491,-2028.26,0.00020817,2]
[349954501,1737534661501,-2040.82,0.00020817,2]
[349954502,1737534661511,-710.66,0.00020817,2]
[349954503,1737534661523,-1247.1,0.00020817,2]
[349954504,1737534661533,-1194.86,0.00020817,2]
[349954505,1737534661543,-999.9,0.00020817,2]
[349954506,1737534661554,-500.0,0.00020817,2]
[349954507,1737534661564,-1111.37,0.00020817,2]
[349954508,1737534661573,-2552.95,0.00020817,2]
[349954509,1737534661582,-1490.37,0.00020817,2]
[349954510,1737534661593,-1149.55,0.00020817,2]
[349954511,1737534661602,-5785.18,0.00020817,2]
[349954512,1737534661611,-634.52,0.00020817,2]
[349954513,1737534661621,-956.77,0.00020817,2]
[349954514,1737534661631,-1268.92,0.00020817,2]
[349954515,1737534661641,-2423.9,0.00020817,2]
[349954516,1737534661651,-500.0,0.00020817,2]
[349954517,1737534661660,-2326.11,0.00020817,2]
[349954518,1737534661670,-775.29,0.00020817,2]
[349954519,1737534661682,-966.49,0.00020817,2]
[349954520,1737534661692,-3638.14,0.00020817,2]
[349954521,1737534661702,-614.54,0.00020817,2]
[349954522,1737534661712,-657.7,0.00020817,2]
[349954523,1737534661721,-3328.69,0.00020817,2]
[349954524,1737534661731,-5075.84,0.00020817,2]
[349954525,1737534661741,-1598.91,0.00020817,2]
[349954526,1737534661750,-1452.67,0.00020817,2]
[349954527,1737534661760,-500.0,0.00020817,2]
[349954528,1737534661770,-914.4,0.00020817,2]
[349954529,1737534661780,-2138.98,0.00020817,2]
[349954530,1737534661790,-500.0,0.00020817,2]
[349954531,1737534661800,-506.53,0.00020817,2]
[349954532,1737534661810,-1155.63,0.00020817,2]
[349954533,1737534661819,-500.0,0.00020817,2]
[349954534,1737534661828,-2857.9,0.00020817,2]
[349954535,1737534661838,-1293.83,0.00020817,2]
[349954536,1737534661848,-500.0,0.00020817,2]
[349954537,1737534661858,-3678.54,0.00020817,2]
[349954538,1737534661868,-500.0,0.00020817,2]
[349954539,1737534661878,-3091.61,0.00020817,2]
[349954540,1737534661888,-547.79,0.00020817,2]
[349954541,1737534661899,-3070.73,0.00020817,2]
[349954542,1737534661910,-853.35,0.00020817,2]
[349954543,1737534661920,-957.09,0.00020817,2]
[349954544,1737534661932,-1475.16,0.00020817,2]
[349954545,1737534661942,-676.64,0.00020817,2]
[349954546,1737534661952,-1214.2,0.00020817,2]
[349954547,1737534661962,-693.59,0.00020817,2]
[349954548,1737534661973,-1500.17,0.00020817,2]
[349954549,1737534661983,-500.0,0.00020817,2]
[349954550,1737534661994,-4612.68,0.00020817,2]
[349954551,1737534662004,-500.0,0.00020817,2]
[349954552,1737534662014,-695.39,0.00020817,2]
[349954553,1737534662024,-500.0,0.00020817,2]
[349954554,1737534662035,-999.84,0.00020817,2]
[349954555,1737534662044,-500.0,0.00020817,2]
[349954556,1737534662054,-500.0,0.00020817,2]
[349954557,1737534662063,-2191.68,0.00020817,2]
[349954558,1737534662072,-500.0,0.00020817,2]
[349954559,1737534662084,-533.07,0.00020817,2]
[349954560,1737534662093,-1250.87,0.00020817,2]
[349954561,1737534662103,-500.0,0.00020817,2]
[349954562,1737534662113,-500.0,0.00020817,2]
[349954563,1737534662123,-500.0,0.00020817,2]
[349954564,1737534662132,-911.61,0.00020817,2]
[349954565,1737534662142,-500.0,0.00020817,2]
[349954566,1737534662152,-500.0,0.00020817,2]
[349954567,1737534662162,-1011.73,0.00020817,2]
[349954568,1737534662175,-783.63,0.00020817,2]
[349954569,1737534662184,-785.43,0.00020817,2]
[349954570,1737534662194,-665.31,0.00020817,2]
[349954571,1737534662204,-500.0,0.00020817,2]
[349954572,1737534662214,-1768.25,0.00020817,2]
[349954573,1737534662224,-821.28,0.00020817,2]
[349954574,1737534662234,-1086.52,0.00020817,2]
[349954575,1737534662244,-500.0,0.00020817,2]
[349954576,1737534662254,-500.0,0.00020817,2]
[349954577,1737534662265,-587.54,0.00020817,2]
[349954578,1737534662275,-583.26,0.00020817,2]
[349954579,1737534662286,-551.1,0.00020817,2]
[349954580,1737534662297,-500.0,0.00020817,2]
[349954581,1737534662307,-1882.75,0.00020817,2]
[349954582,1737534662318,-1838.57,0.00020817,2]
[349954583,1737534662328,-500.0,0.00020817,2]
[349954584,1737534662339,-1151.39187341,0.00020817,2]
[349954585,1737534662349,-500.0,0.00020818,2]
[349954586,1737534662359,-500.0,0.00020818,2]
[349954587,1737534662369,-500.0,0.00020818,2]
[349954588,1737534662379,-500.0,0.00020818,2]
[349954589,1737534662389,-500.0,0.00020818,2]
[349954590,1737534662399,-500.0,0.00020818,2]
[349954591,1737534662409,-500.0,0.00020818,2]
[349954592,1737534662418,-722.82,0.00020818,2]
[349954593,1737534662429,-609.31804206,0.00020818,2]
[349954594,1737534662439,-1357.12,0.00020818,2]
[349954595,1737534662450,-628.45,0.00020818,2]
[349954596,1737534662460,-846.46,0.00020818,2]
[349954597,1737534662471,-751.94,0.00020818,2]
[349954598,1737534662481,-500.0,0.00020818,2]
[349954599,1737534662490,-500.0,0.00020818,2]
[349954600,1737534662500,-500.0,0.00020818,2]
[349954601,1737534662510,-1535.03,0.00020818,2]
[349954602,1737534662525,-1286.53,0.00020818,2]
[349954603,1737534662535,-1081.56,0.00020818,2]
[349954604,1737534662544,-500.0,0.00020818,2]
[349954605,1737534662555,-500.0,0.00020818,2]
[349954606,1737534662564,-904.23,0.00020818,2]
[349954607,1737534662574,-500.0,0.00020818,2]
[349954608,1737534662584,-500.0,0.00020818,2]
[349954609,1737534662594,-545.1247888,0.00020818,2]
[349954610,1737534662604,-513.62997513,0.00020818,2]
[349954611,1737534662613,-501.66726204,0.00020821,2]
[349954612,1737534662622,-500.0,0.00020821,2]
[349954613,1737534662631,-600.99,0.00020821,2]
[349954614,1737534662640,-455.98929131,0.00020822,2]
[349954615,1737534662649,-200.0,0.00020835,2]
[349954616,1737534662659,-1027.22951524,0.00020848,2]
[349954617,1737534662667,-676.37,0.00020863,7]
[349954618,1737534662678,-676.37,0.00020863,7]
[349954619,1737534662687,-200.0,0.00020863,2]
[349954620,1737534662696,-1737.70838908,0.00020865,2]
[349954621,1737534662706,-455.98929131,0.00020867,2]
[349954622,1737534662716,-200.0,0.00020871,2]
[349954623,1737534662726,-200.0,0.00020875,2]
[349954624,1737534662736,-639.85829486,0.00020875,2]
[349954625,1737534662746,-455.98929131,0.00020876,2]
[349954626,1737534662756,-200.0,0.00020881,2]
[349954627,1737534662767,-204.8498642,0.00020883,2]
[349954628,1737534662778,-2530.26,0.00020885,2]
[349954629,1737534662787,-241.72862461,0.00020885,2]
[349954630,1737534662797,-639.85829486,0.00020889,2]
[349954631,1737534662808,-1027.22951524,0.00020894,2]
[349954632,1737534662817,-1151.39187341,0.00020895,2]
[349954633,1737534662827,-1545.73220754,0.000209,2]
[349954634,1737534662836,-2242.40864827,0.000209,2]
[349954635,1737534662847,-234.98151017,0.000209,2]
[349954636,1737534662859,-807.64769146,0.000209,2]
[349954637,1737534662869,-174.88996566,0.000209,2]
[349954638,1737534662879,-205.40745367,0.000209,2]
[349954639,1737534662889,-241.72862461,0.00020901,2]
[349954640,1737534662898,-455.98929131,0.00020902,2]
[349954641,1737534662907,-204.8498642,0.00020904,2]
[349954642,1737534662917,-204.8498642,0.00020905,2]
[349954643,1737534662928,-200.0,0.00020909,2]
[349954644,1737534662939,-241.72862461,0.00020913,2]
[349954645,1737534662949,-12522.81,0.00020913,2]
[349954646,1737534662959,-200.0,0.00020916,2]
[349954647,1737534662969,-1027.22951524,0.00020916,2]
[349954648,1737534662979,-1151.39187341,0.00020917,2]
[349954649,1737534662988,-200.0,0.00020919,2]
[349954650,1737534662998,-241.72862461,0.0002092,2]
[349954651,1737534663007,-200.0,0.00020928,2]
[349954652,1737534663017,-639.85829486,0.00020933,2]
[349954653,1737534663026,-455.98929131,0.00020935,2]
[349954654,1737534663036,-200.0,0.00020935,2]
[349954655,1737534663046,-241.72862461,0.00020937,2]
[349954656,1737534663056,-1151.39187341,0.00020939,2]
[349954657,1737534663067,-639.85829486,0.0002094,2]
[349954658,1737534663078,-200.0,0.00020943,2]
[349954659,1737534663088,-1737.70838908,0.00020945,2]
[349954660,1737534663098,-800.35,0.00020946,2]
[349954661,1737534663109,-200.0,0.00020948,2]
[349954662,1737534663165,-1737.70838908,0.00020948,2]
[349954663,1737534663175,-150.0,0.00020956,4]
[349954664,1737534663185,-600.99,0.00020958,2]
[349954665,1737534663195,-1000.0,0.0002097,2]
[349954666,1737534663205,-500.0,0.0002097,2]
[349954667,1737534663215,-500.0,0.0002097,2]
[349954668,1737534663225,-500.0,0.0002097,2]
[349954669,1737534663235,-500.0,0.0002097,2]
[349954670,1737534663245,-500.0,0.0002097,2]
[349954671,1737534663255,-500.0,0.0002097,2]
[349954672,1737534663267,-500.0,0.0002097,2]
[349954673,1737534663276,-500.0,0.0002097,2]
[349954674,1737534663286,-500.0,0.0002097,2]
[349954675,1737534663297,-500.0,0.0002097,2]
[349954676,1737534663307,-500.0,0.0002097,2]
[349954677,1737534663318,-500.0,0.0002097,2]
[349954678,1737534663327,-500.0,0.0002097,2]
[349954679,1737534663337,-500.0,0.0002097,2]
[349954680,1737534663346,-500.0,0.0002097,2]
[349954681,1737534663355,-500.0,0.0002097,2]
[349954682,1737534663365,-500.0,0.0002097,2]
[349954683,1737534663375,-500.0,0.0002097,2]
[349954684,1737534663386,-500.0,0.0002097,2]
[349954685,1737534663395,-500.0,0.0002097,2]
[349954686,1737534663406,-500.0,0.0002097,2]
[349954687,1737534663416,-500.0,0.0002097,2]
[349954688,1737534663427,-500.0,0.0002097,2]
[349954689,1737534663438,-500.0,0.0002097,2]
[349954690,1737534663448,-500.0,0.0002097,2]
[349954691,1737534663458,-500.0,0.0002097,2]
[349954692,1737534663468,-500.0,0.0002097,2]
[349954693,1737534663478,-500.0,0.0002097,2]
[349954694,1737534663488,-500.0,0.0002097,2]
[349954695,1737534663498,-500.0,0.0002097,2]
[349954696,1737534663508,-500.0,0.0002097,2]
[349954697,1737534663519,-500.0,0.0002097,2]
[349954698,1737534663531,-821.0,0.0002097,2]
[349954699,1737534663541,-912.0,0.0002097,2]
[349954700,1737534663552,-205.40745367,0.00020983,2]
[349954701,1737534663563,-1031.4948883,0.00020999,5]
[349954702,1737534663573,-150.0,0.00021,2]
[349954703,1737534663584,-1432735.9883618,0.00021,15]
[349954704,1737534663845,-578.6613056,0.00021,15]
[349954705,1737534663871,-500.0,0.0001972,2]
[349954706,1737534663881,-685.67554439,0.00019994,2]
[349954707,1737534664011,-1739.71445561,0.00019994,2]
[349954708,1737534664021,-4017.44,0.00020268,2]
[349954709,1737534664031,-4511.63127731,0.00021,15]
[349954710,1737534664049,-151.31458618,0.00019995,2]
[349954711,1737534664059,-2103.08541382,0.00021,15]
[349954712,1737534664629,-500.0,0.00019447,2]
[349954713,1737534664639,-62.70090223,0.00019447,2]
[349954714,1737534664650,-432.11772072,0.00019447,2]
[349954715,1737534664660,-500.0,0.00019721,2]
[349954716,1737534664670,-500.0,0.00019994,2]
[349954717,1737534664681,-500.0,0.00019995,2]
[349954718,1737534664690,-10000.0,0.0002,2]
[349954719,1737534664700,-12500.0,0.0002,2]
[349954720,1737534664709,-2425.39,0.00020268,2]
[349954721,1737534664719,-500.0,0.00020269,2]
[349954722,1737534664729,-1457.86936387,0.00020542,2]
[349954723,1737534664753,-12500.0,0.0002004,2]
[349954724,1737534664763,-2559.57063613,0.00020542,2]
[349954725,1737534664773,-2425.39,0.00020542,2]
[349954726,1737534664783,-500.0,0.00020543,2]
[349954727,1737534664793,-4017.44,0.00020816,2]
[349954728,1737534664803,-2425.39,0.00020816,2]
[349954729,1737534664813,-250160.9054259,0.00021,15]
[349954730,1737534664825,-12674.517128,0.00021,15]
[349954731,1737534664837,-17022.88709485,0.00021,15]
[349954732,1737534664848,-4452.71,0.00021,15]
[349954733,1737534664861,-357.76110736,0.00021,15]
[349954734,1737534664886,-500.0,0.00019447,2]
[349954735,1737534664896,-26380.0,0.00021,15]
[349954736,1737534664914,-500.0,0.00020817,2]
[349954737,1737534664924,-1140.0,0.00021,15]
[349954738,1737534664935,-130307.5738796,0.00021,15]
[349954739,1737534664948,-58238.52361599,0.00021,15]
[349954740,1737534664961,-25508.80523632,0.00021,15]
[349954741,1737534665330,-152.594291,0.00019446,2]
[349954742,1737534665340,-500.0,0.00019447,2]
[349954743,1737534665351,-500.0,0.00019721,2]
[349954744,1737534665361,-595.58,0.00019721,2]
[349954745,1737534665372,-500.0,0.00019995,2]
[349954746,1737534665381,-45.48842861,0.00020268,2]
[349954747,1737534665394,-107.10586239,0.00020268,2]
[349954748,1737534665404,-328.38413261,0.00020269,2]
[349954749,1737534665416,-171.61586739,0.00020269,2]
[349954750,1737534665429,-500.0,0.00020543,2]
[349954751,1737534665438,-567.0,0.00020605,2]
[349954752,1737534665448,-500.0,0.00020817,2]
[349954753,1737534665458,-174985.12330949,0.00021,15]
[349954754,1737534665563,-1010.31022546,0.00021,15]
[349954755,1737534665577,-2084.75959593,0.00021,15]
[349954756,1737534792641,352.400808,0.00024,120]
[349954757,1737534794868,2000.0,0.00024,120]
[349954758,1737534803884,204.660524,0.00024,120]
[349954759,1737534832857,200.0,0.00024,120]
[349954760,1737534834624,200.0,0.00024,120]
[349954761,1737534955129,2500.0,0.00019446,120]
[349954762,1737534955380,2500.0,0.0001972,120]
[349954763,1737534955818,2500.0,0.00019994,120]
[349954764,1737534956049,179.00616237,0.00020268,120]
[349954770,1737535393165,2000.0,0.00024,120]
[349954771,1737535545100,-170.72,0.0001522,2]
[349954772,1737535545123,-530.82,0.00016185,2]
[349954773,1737535545145,-5211.12559326,0.000181,7]
[349954774,1737535545167,-209.19,0.00018137,2]
[349954775,1737535545189,-500.0,0.00018164,2]
[349954776,1737535545212,-500.0,0.00018164,2]
[349954777,1737535545235,-150.0,0.00018219,2]
[349954778,1737535545256,-169.61,0.00018224,2]
[349954779,1737535545277,-168.74,0.00018239,2]
[349954780,1737535545297,-150.0,0.00018284,2]
[349954781,1737535545318,-848.534,0.00018362,2]
[349954782,1737535545341,-405.15,0.00018412,2]
[349954783,1737535545361,-530.82,0.00018449,2]
[349954784,1737535545382,-1137.45,0.00018461,2]
[349954785,1737535545403,-2857.0,0.00018493,2]
[349954786,1737535545424,-305.95,0.00018506,2]
[349954787,1737535545446,-250.0,0.00018583,2]
[349954788,1737535545467,-7032.51,0.00018627,2]
[349954789,1737535545489,-4622.0,0.000188,2]
[349954790,1737535545511,-168.69,0.00018944,2]
[349954791,1737535545532,-543.67,0.00019025,2]
[349954792,1737535545553,-572.69,0.00019067,2]
[349954793,1737535545573,-2692.8339251,0.000191,3]
[349954794,1737535546117,155.19,0.00010137,2]
[349954796,1737535590104,-155.19,0.00017184,2]
[349954797,1737535590130,-517.60358103,0.0001916,2]
[349954798,1737535590156,-250.0,0.00019206,2]
[349954799,1737535590181,-2547.75,0.00019235,2]
[349954800,1737535590207,-300.0,0.00019299,2]
[349954801,1737535590235,-671.26413371,0.000193,3]
[349954802,1737535717101,379.03244567,0.00024,120]
[349954839,1737535832765,-500.0,0.00018164,2]
[349954840,1737535832775,-500.0,0.00018164,2]
[349954841,1737535832785,-168.69,0.0001875,2]
[349954842,1737535832794,-1000.0,0.0001886,2]
[349954843,1737535832805,-2195.0,0.000191,3]
[349954844,1737535832815,-500.0,0.0001926,2]
[349954845,1737535832825,-5559.0,0.000193,5]
[349954846,1737535832836,-864.33043046,0.00019345,2]
[349954847,1737535832846,-500.0,0.00019445,2]
[349954848,1737535832856,-506.54819401,0.00019445,2]
[349954849,1737535832866,-500.0,0.00019445,2]
[349954850,1737535832876,-687.92,0.00019445,2]
[349954851,1737535832887,-504.39052004,0.00019445,2]
[349954852,1737535832897,-500.0,0.00019445,2]
[349954853,1737535832906,-505.1114871,0.00019445,2]
[349954854,1737535832918,-503.80574312,0.00019445,2]
[349954855,1737535832930,-500.0,0.00019445,2]
[349954856,1737535832939,-829.09,0.00019445,2]
[349954857,1737535832948,-500.0,0.00019445,2]
[349954858,1737535832958,-500.0,0.00019445,2]
[349954859,1737535832967,-383.7997835,0.00019445,2]
[349954860,1737535832977,-500.0,0.00019445,2]
[349954861,1737535832986,-502.35029851,0.00019445,2]
[349954862,1737535832996,-502.32570771,0.00019445,2]
[349954863,1737535833005,-99.43164449,0.00019445,2]
[349954864,1737535833044,-400.56835551,0.00019445,2]
[349954865,1737535833053,-502.29206811,0.00019445,2]
[349954866,1737535833062,-165.13957538,0.00019445,2]
[349954867,1737535833073,-336.17720043,0.00019445,2]
[349954868,1737535833083,-507.31202364,0.00019445,2]
[349954869,1737535833092,-131.61077733,0.00019445,2]
[349954870,1737535833112,-368.38922267,0.00019445,2]
[349954871,1737535833121,-501.49187176,0.00019445,2]
[349954872,1737535833131,-502.96918171,0.00019445,2]
[349954873,1737535833141,-706.98,0.00019445,2]
[349954874,1737535833150,-500.0,0.00019445,2]
[349954875,1737535833159,-502.20539529,0.00019445,2]
[349954876,1737535833168,-500.0,0.00019445,2]
[349954877,1737535833179,-504.70803446,0.00019445,2]
[349954878,1737535833188,-524.39,0.00019445,2]
[349954879,1737535833199,-500.0,0.00019445,2]
[349954880,1737535833208,-596.2776043,0.00019445,2]
[349954881,1737535833218,-507.59232478,0.00019445,2]
[349954882,1737535833227,-500.0,0.00019445,2]
[349954883,1737535833237,-497.39118868,0.00019445,2]
[349954884,1737535833246,-500.0,0.00019445,2]
[349954885,1737535833256,-505.15344946,0.00019445,2]
[349954886,1737535833265,-500.0,0.00019445,2]
[349954887,1737535833275,-500.85208095,0.00019445,2]
[349954888,1737535833285,-500.0,0.00019445,2]
[349954889,1737535833295,-555.75,0.00019445,2]
[349954890,1737535833304,-250.88293534,0.00019445,2]
[349954891,1737535833329,-249.11706466,0.00019445,2]
[349954892,1737535833338,-113.62222421,0.00019445,2]
[349954965,1737535838331,-769.22777579,0.00019445,2]
[349954966,1737535838342,-974.81,0.00019445,2]
[349954967,1737535838352,-500.0,0.00019445,2]
[349954968,1737535838361,-500.0,0.00019445,2]
[349954969,1737535838372,-500.0,0.00019445,2]
[349954970,1737535838381,-500.0,0.00019445,2]
[349954971,1737535838391,-500.0,0.00019445,2]
[349954972,1737535838402,-500.0,0.00019445,2]
[349954973,1737535838412,-1033.33,0.00019445,2]
[349954974,1737535838421,-881.186028,0.00019445,2]
[349954975,1737535838432,-502.47491964,0.00019445,2]
[349954976,1737535838441,-668.82,0.00019445,2]
[349954977,1737535838451,-584.92,0.00019445,2]
[349954978,1737535838463,-597.75,0.00019445,2]
[349954979,1737535838473,-1383.258647,0.00019445,2]
[349954980,1737535838482,-500.0,0.00019445,2]
[349954981,1737535838492,-500.0,0.00019445,2]
[349954982,1737535838501,-156.381715,0.00019445,2]
[349954983,1737535838511,-500.0,0.00019445,2]
[349954984,1737535838521,-1189.34,0.00019445,2]
[349954985,1737535838531,-500.0,0.00019445,2]
[349954986,1737535838541,-500.0,0.00019445,2]
[349954987,1737535838550,-708.96,0.00019445,2]
[349954988,1737535838559,-282.9795579,0.00019445,2]
[349954989,1737535838568,-500.0,0.00019445,2]
[349954990,1737535838578,-664.95,0.00019445,2]
[349954991,1737535838587,-500.0,0.00019445,2]
[349954992,1737535838597,-1395.76,0.00019445,2]
[349954993,1737535838606,-500.0,0.00019445,2]
[349954994,1737535838616,-337.48620953,0.00019445,2]
[349954995,1737535838625,-500.0,0.00019445,2]
[349954996,1737535838635,-567.8,0.00019445,2]
[349954997,1737535838645,-500.0,0.00019445,2]
[349954998,1737535838654,-1026.06,0.00019445,2]
[349954999,1737535838664,-346.57491651,0.00019445,2]
[349955000,1737535838673,-500.0,0.00019445,2]
[349955001,1737535838683,-500.0,0.00019445,2]
[349955002,1737535838692,-553.55,0.00019445,2]
[349955003,1737535838702,-500.0,0.00019445,2]
[349955005,1737535838712,-500.0,0.00019445,2]
[349955006,1737535838722,-1399.0,0.00019445,2]
[349955007,1737535838731,-500.0,0.00019445,2]
[349955008,1737535838740,-582.01722933,0.00019445,2]
[349955009,1737535838749,-897.03,0.00019445,2]
[349955010,1737535838760,-500.0,0.00019445,2]
[349955011,1737535838769,-880.39,0.00019445,2]
[349955012,1737535838778,-500.0,0.00019445,2]
[349955014,1737535838787,-500.0,0.00019445,2]
[349955015,1737535838797,-500.0,0.00019445,2]
[349955017,1737535838806,-500.0,0.00019445,2]
[349955019,1737535838816,-500.0,0.00019445,2]
[349955020,1737535838825,-500.0,0.00019445,2]
[349955022,1737535838835,-500.0,0.00019445,2]
[349955023,1737535838844,-500.0,0.00019445,2]
[349955024,1737535838853,-1082.05,0.00019445,2]
[349955025,1737535838862,-500.0,0.00019445,2]
[349955026,1737535838871,-1124.96,0.00019445,2]
[349955027,1737535838881,-500.0,0.00019445,2]
[349955028,1737535838891,-500.0,0.00019445,2]
[349955029,1737535838900,-500.0,0.00019445,2]
[349955030,1737535838909,-500.0,0.00019445,2]
[349955031,1737535838922,-791.67,0.00019445,2]
[349955032,1737535838933,-659.65,0.00019445,2]
[349955033,1737535838942,-500.0,0.00019445,2]
[349955034,1737535838957,-500.0,0.00019445,2]
[349955035,1737535838967,-500.0,0.00019445,2]
[349955036,1737535838976,-500.0,0.00019445,2]
[349955037,1737535838986,-500.0,0.00019445,2]
[349955038,1737535838995,-500.0,0.00019445,2]
[349955039,1737535839004,-500.0,0.00019445,2]
[349955040,1737535839013,-897.68,0.00019445,2]
[349955041,1737535839022,-500.0,0.00019445,2]
[349955042,1737535839031,-1008.18,0.00019445,2]
[349955043,1737535839041,-1914.1,0.00019445,2]
[349955044,1737535839050,-500.0,0.00019445,2]
[349955045,1737535839060,-500.0,0.00019445,2]
[349955046,1737535839069,-500.0,0.00019445,2]
[349955047,1737535839078,-805.46,0.00019445,2]
[349955048,1737535839087,-500.0,0.00019445,2]
[349955049,1737535839097,-500.0,0.00019445,2]
[349955050,1737535839106,-2511.45,0.00019445,2]
[349955051,1737535839115,-500.0,0.00019445,2]
[349955052,1737535839124,-500.0,0.00019445,2]
[349955053,1737535839134,-500.0,0.00019445,2]
[349955054,1737535839143,-40.75691237,0.00019445,2]
[349955055,1737535839206,-459.24308763,0.00019445,2]
[349955056,1737535839215,-500.0,0.00019445,2]
[349955057,1737535839224,-1206.52,0.00019445,2]
[349955058,1737535839233,-500.0,0.00019445,2]
[349955059,1737535839243,-195.92396548,0.00019445,2]
[349955060,1737535839252,-371.16485147,0.00019445,2]
[349955061,1737535839263,-132.46429781,0.00019445,2]
[349955062,1737535839274,-251.5658653,0.00019445,2]
[349955063,1737535839290,-248.4341347,0.00019445,2]
[349955064,1737535839299,-15.98380405,0.00019445,2]
[349955065,1737535839310,-3991.34619595,0.00019445,2]
[349955066,1737535839320,-2492.62,0.00019445,2]
[349955067,1737535839329,-1678.2,0.00019445,2]
[349955068,1737535839339,-500.0,0.00019445,2]
[349955069,1737535839349,-500.0,0.00019445,2]
[349955070,1737535839359,-500.0,0.00019445,2]
[349955071,1737535839368,-500.0,0.00019445,2]
[349955072,1737535839378,-1512.08,0.00019445,2]
[349955073,1737535839388,-500.0,0.00019445,2]
[349955074,1737535839397,-500.0,0.00019445,2]
[349955075,1737535839406,-500.0,0.00019445,2]
[349955076,1737535839415,-500.0,0.00019445,2]
[349955077,1737535839425,-500.0,0.00019445,2]
[349955078,1737535839435,-500.0,0.00019445,2]
[349955079,1737535839444,-956.5,0.00019445,2]
[349955080,1737535839453,-500.0,0.00019445,2]
[349955081,1737535839463,-500.0,0.00019445,2]
[349955082,1737535839473,-500.0,0.00019445,2]
[349955083,1737535839482,-859.9,0.00019445,2]
[349955084,1737535839492,-564.94,0.00019445,2]
[349955085,1737535839502,-500.0,0.00019445,2]